fUSD/lending_fUSD_20240905
["ID","MTS","AMOUNT","RATE_DAILY","PERIOD"]
[337258360,1725553645595,-605.01,0.00014986,2]
[337258361,1725553645617,-542.71,0.00014986,2]
[337258362,1725553645639,-524.89,0.00014986,2]
[337258363,1725553645662,-500.0,0.00014986,2]
[337258364,1725553645683,-500.0,0.00014986,2]
[337258365,1725553645704,-500.0,0.00014986,2]
[337258366,1725553645726,-522.82,0.00014986,2]
[337258367,1725553645748,-150.0,0.00014986,2]
[337258368,1725553645771,-500.0,0.00014987,2]
[337258369,1725553645793,-500.0,0.00014987,2]
[337258370,1725553645815,-500.0,0.00014987,2]
[337258371,1725553645839,-500.0,0.00014987,2]
[337258372,1725553645861,-500.0,0.00014987,2]
[337258373,1725553645883,-468.73009177,0.00014987,2]
[337258374,1725553645906,-500.0,0.00014987,2]
[337258375,1725553645929,-289.83681279,0.00014987,2]
[337258376,1725553645951,-500.0,0.00014987,2]
[337258377,1725553645974,-500.0,0.00014987,2]
[337258378,1725553645996,-500.0,0.00014987,2]
[337258379,1725553646019,-501.03200222,0.00014987,2]
[337258380,1725553646041,-500.0,0.00014987,2]
[337258381,1725553646063,-500.0,0.00014987,2]
[337258382,1725553646091,-500.0,0.00014987,2]
[337258383,1725553646113,-500.0,0.00014987,2]
[337258384,1725553646137,-1176.7078,0.00014987,2]
[337258385,1725553646159,-154.362379,0.00014987,2]
[337258386,1725553646183,-152.714659,0.00014987,2]
[337258387,1725553646204,-500.0,0.00014987,2]
[337258388,1725553646226,-500.0,0.00014987,2]
[337258389,1725553646248,-500.0,0.00014989,2]
[337258390,1725553646270,-335.11773299,0.00014989,2]
[337258391,1725553646292,-587.84278679,0.00014989,2]
[337258392,1725553646314,-1491.48,0.0001499,2]
[337258393,1725553646338,-909.88,0.0001499,2]
[337258394,1725553646360,-811.19,0.0001499,2]
[337258395,1725553646384,-970.97,0.0001499,2]
[337258396,1725553646406,-500.0,0.0001499,2]
[337258397,1725553646428,-500.0,0.0001499,2]
[337258398,1725553646449,-3304.34,0.0001499,2]
[337258399,1725553646471,-1322.81,0.0001499,2]
[337258400,1725553646493,-606.33,0.0001499,2]
[337258401,1725553646515,-3499.63,0.0001499,2]
[337258402,1725553646538,-500.0,0.0001499,2]
[337258403,1725553646559,-1487.4,0.0001499,2]
[337258404,1725553646590,-531.16,0.0001499,2]
[337258405,1725553646613,-12758.91,0.0001499,2]
[337258406,1725553646636,-721.49,0.0001499,2]
[337258407,1725553646660,-500.0,0.0001499,2]
[337258408,1725553646682,-3383.94,0.0001499,2]
[337258409,1725553646704,-516.01,0.0001499,2]
[337258410,1725553646728,-14738.66,0.0001499,2]
[337258411,1725553646753,-6022.62,0.0001499,2]
[337258412,1725553646777,-2989.74,0.0001499,2]
[337258413,1725553646799,-500.0,0.0001499,2]
[337258414,1725553646824,-1823.63,0.0001499,2]
[337258415,1725553646850,-500.0,0.00014991,2]
[337258416,1725553646872,-500.0,0.00014991,2]
[337258417,1725553646894,-500.0,0.00014991,2]
[337258418,1725553646916,-500.0,0.00014991,2]
[337258419,1725553646938,-500.0,0.00014991,2]
[337258420,1725553646960,-643.88,0.00014991,2]
[337258421,1725553646982,-166.72,0.00014991,2]
[337258422,1725553647003,-1314.03,0.00014991,2]
[337258423,1725553647025,-500.0,0.00014991,2]
[337258424,1725553647047,-500.0,0.00014991,2]
[337258425,1725553647069,-500.0,0.00014991,2]
[337258426,1725553647097,-651.92,0.00014991,2]
[337258428,1725553647120,-500.0,0.00014991,2]
[337258429,1725553647143,-3826.98,0.00014991,2]
[337258430,1725553647166,-500.0,0.00014991,2]
[337258431,1725553647189,-500.0,0.00014991,2]
[337258432,1725553647210,-727.97,0.00014991,2]
[337258433,1725553647231,-500.0,0.00014991,2]
[337258434,1725553647255,-500.0,0.00014991,2]
[337258435,1725553647277,-500.0,0.00014991,2]
[337258436,1725553647298,-2127.22,0.00014991,2]
[337258437,1725553647320,-2970.51,0.00014991,2]
[337258438,1725553647344,-605.01,0.00014991,2]
[337258439,1725553647366,-672.18,0.00014991,2]
[337258440,1725553647389,-542.71,0.00014991,2]
[337258441,1725553647410,-514.26,0.00014991,2]
[337258442,1725553647432,-405.52850159,0.00014991,2]
[337258443,1725553647455,-524.89,0.00014991,2]
[337258444,1725553647477,-963.14,0.00014991,2]
[337258445,1725553647499,-500.0,0.00014991,2]
[337258446,1725553647521,-500.0,0.00014991,2]
[337258447,1725553647543,-270.46380772,0.00014991,2]
[337258448,1725553647565,-2841.65,0.00014991,2]
[337258449,1725553647586,-500.0,0.00014991,2]
[337258450,1725553647607,-500.0,0.00014991,2]
[337258451,1725553647628,-500.0,0.00014991,2]
[337258452,1725553647650,-500.0,0.00014991,2]
[337258453,1725553647672,-500.0,0.00014991,2]
[337258454,1725553647695,-500.0,0.00014991,2]
[337258455,1725553647717,-1697.44,0.00014991,2]
[337258456,1725553647738,-500.0,0.00014991,2]
[337258457,1725553647761,-500.0,0.00014991,2]
[337258458,1725553647782,-500.0,0.00014991,2]
[337258459,1725553647804,-500.0,0.00014991,2]
[337258460,1725553647826,-500.0,0.00014991,2]
[337258461,1725553647848,-522.82,0.00014991,2]
[337258462,1725553647870,-500.0,0.00014991,2]
[337258463,1725553647892,-545.33023015,0.00014991,2]
[337258464,1725553647916,-500.0,0.00014991,2]
[337258465,1725553647938,-500.0,0.00014991,2]
[337258466,1725553647964,-364.80481419,0.00014991,2]
[337258467,1725553647986,-500.0,0.00014991,2]
[337258468,1725553648008,-608.42,0.00014991,2]
[337258469,1725553648031,-500.0,0.00014991,2]
[337258470,1725553648053,-1710.59,0.00014991,2]
[337258471,1725553648084,-500.0,0.00014991,2]
[337258472,1725553648110,-500.0,0.00014991,2]
[337258473,1725553648134,-559.36,0.00014991,2]
[337258474,1725553648155,-297.05069768,0.00014991,2]
[337258475,1725553648179,-500.0,0.00014991,2]
[337258476,1725553648201,-500.0,0.00014991,2]
[337258477,1725553648224,-500.0,0.00014991,2]
[337258478,1725553648247,-542.1,0.00014991,2]
[337258479,1725553648270,-150.0,0.00014991,2]
[337258480,1725553648293,-2061.17,0.00014991,2]
[337258481,1725553648318,-2484.57,0.00014991,2]
[337258482,1725553648354,-747.55,0.00014991,2]
[337258483,1725553648384,-500.0,0.00014991,2]
[337258484,1725553648410,-500.0,0.00014991,2]
[337258485,1725553648436,-1275.99,0.00014991,2]
[337258486,1725553648460,-500.0,0.00014991,2]
[337258487,1725553648484,-500.0,0.00014991,2]
[337258488,1725553648508,-3623.59,0.00014991,2]
[337258489,1725553648530,-664.55,0.00014991,2]
[337258490,1725553648553,-500.0,0.00014991,2]
[337258491,1725553648581,-786.33,0.00014991,2]
[337258492,1725553648607,-3555.39781619,0.00014991,2]
[337258493,1725553649440,245.44450883,0.000101,2]
[337258494,1725553673038,657.77,0.00012186,2]
[337258495,1725553680914,-1833.81,0.00014086,2]
[337258496,1725553680938,-657.77,0.0001445,2]
[337258497,1725553680960,-2292.613438,0.000148,2]
[337258498,1725553680982,-500.0,0.0001499,2]
[337258499,1725553681006,-716.41,0.0001499,2]
[337258500,1725553681029,-500.0,0.0001499,2]
[337258501,1725553681052,-1222.83,0.0001499,2]
[337258502,1725553681077,-500.0,0.0001499,2]
[337258503,1725553681107,-753.56,0.0001499,2]
[337258504,1725553681131,-3217.95947339,0.00014991,2]
[337258505,1725553681153,-925.92218381,0.00014991,2]
[337258506,1725553681176,-500.0,0.00014991,2]
[337258507,1725553681199,-500.0,0.00014991,2]
[337258508,1725553681221,-4173.78,0.00014991,2]
[337258509,1725553681243,-608.64717582,0.00014991,2]
[337258510,1725553681266,-500.0,0.00014991,2]
[337258511,1725553681287,-500.0,0.00014991,2]
[337258512,1725553681310,-500.0,0.00014991,2]
[337258513,1725553681334,-1326.98,0.00014991,2]
[337258514,1725553681359,-5955.53,0.00014991,2]
[337258515,1725553681380,-500.0,0.00014991,2]
[337258516,1725553681401,-1654.89,0.00014991,2]
[337258517,1725553681424,-500.0,0.00014991,2]
[337258518,1725553681446,-1235.74,0.00014991,2]
[337258519,1725553681468,-500.0,0.00014991,2]
[337258520,1725553681491,-2020.97,0.00014991,2]
[337258521,1725553681513,-500.0,0.00014991,2]
[337258522,1725553681537,-976.13,0.00014991,2]
[337258523,1725553681559,-500.0,0.00014991,2]
[337258524,1725553681582,-500.0,0.00014991,2]
[337258525,1725553681608,-500.0,0.00014991,2]
[337258526,1725553681632,-500.0,0.00014991,2]
[337258527,1725553681656,-500.0,0.00014991,2]
[337258528,1725553681680,-500.0,0.00014991,2]
[337258530,1725553681704,-5309.17,0.00014991,2]
[337258531,1725553681727,-1421.42,0.00014991,2]
[337258532,1725553681749,-500.0,0.00014991,2]
[337258533,1725553681772,-500.0,0.00014991,2]
[337258534,1725553681794,-2774.22,0.00014991,2]
[337258535,1725553681816,-500.0,0.00014991,2]
[337258536,1725553681839,-795.45,0.00014991,2]
[337258537,1725553681864,-500.0,0.00014991,2]
[337258538,1725553681885,-500.0,0.00014991,2]
[337258539,1725553681908,-500.0,0.00014991,2]
[337258540,1725553681931,-643.26,0.00014991,2]
[337258541,1725553681958,-6192.27,0.00014991,2]
[337258542,1725553681981,-500.0,0.00014991,2]
[337258543,1725553682004,-2427.96,0.00014991,2]
[337258544,1725553682026,-500.0,0.00014991,2]
[337258545,1725553682048,-1622.9,0.00014991,2]
[337258546,1725553682073,-500.0,0.00014991,2]
[337258547,1725553682311,-500.0,0.00014991,2]
[337258548,1725553682335,-500.0,0.00014991,2]
[337258549,1725553682361,-500.0,0.00014991,2]
[337258550,1725553682385,-3240.09,0.00014991,2]
[337258551,1725553682408,-500.0,0.00014991,2]
[337258552,1725553682430,-500.0,0.00014991,2]
[337258553,1725553682453,-500.0,0.00014991,2]
[337258554,1725553682477,-500.0,0.00014991,2]
[337258555,1725553682502,-2178.6,0.00014991,2]
[337258556,1725553682526,-782.73,0.00014991,2]
[337258557,1725553682551,-1033.93,0.00014991,2]
[337258558,1725553682574,-500.0,0.00014991,2]
[337258559,1725553682598,-2838.21,0.00014991,2]
[337258560,1725553682621,-383.04317598,0.00014991,2]
[337258561,1725553682645,-2935.31,0.00014991,2]
[337258562,1725553682668,-1027.36,0.00014991,2]
[337258563,1725553682691,-500.0,0.00014991,2]
[337258564,1725553682714,-500.0,0.00014991,2]
[337258565,1725553682737,-2541.21,0.00014991,2]
[337258566,1725553682761,-1855.37,0.00014991,2]
[337258567,1725553682785,-20044.75,0.00014991,2]
[337258568,1725553682808,-500.0,0.00014991,2]
[337258569,1725553682831,-500.0,0.00014991,2]
[337258570,1725553682858,-500.0,0.00014991,2]
[337258571,1725553682880,-500.0,0.00014991,2]
[337258572,1725553682904,-500.0,0.00014991,2]
[337258573,1725553682926,-500.0,0.00014991,2]
[337258574,1725553682951,-500.0,0.00014991,2]
[337258575,1725553682974,-7698.81,0.00014991,2]
[337258576,1725553682997,-500.0,0.00014991,2]
[337258577,1725553683018,-617.38,0.00014991,2]
[337258578,1725553683042,-500.0,0.00014991,2]
[337258579,1725553683065,-500.0,0.00014991,2]
[337258580,1725553683092,-719.32,0.00014991,2]
[337258581,1725553683130,-502.86,0.00014991,2]
[337258582,1725553683165,-500.0,0.00014991,2]
[337258583,1725553683190,-3419.25,0.00014991,2]
[337258584,1725553683214,-500.0,0.00014992,2]
[337258585,1725553683243,-424.04,0.00014992,2]
[337258586,1725553683269,-190.12,0.00014992,2]
[337258587,1725553683294,-500.0,0.00014992,2]
[337258588,1725553683318,-500.0,0.00014992,2]
[337258589,1725553683343,-500.0,0.00014992,2]
[337258590,1725553683369,-500.0,0.00014992,2]
[337258591,1725553683392,-500.0,0.00014992,2]
[337258592,1725553683415,-545.9,0.00014992,2]
[337258593,1725553683437,-500.0,0.00014992,2]
[337258594,1725553683464,-500.0,0.00014992,2]
[337258595,1725553683487,-1314.03,0.00014992,2]
[337258596,1725553683510,-1314.03,0.00014992,2]
[337258597,1725553683532,-500.0,0.00014992,2]
[337258598,1725553683556,-500.0,0.00014992,2]
[337258599,1725553683579,-651.92,0.00014992,2]
[337258600,1725553683606,-651.92,0.00014992,2]
[337258601,1725553683629,-727.97,0.00014992,2]
[337258602,1725553683653,-727.97,0.00014992,2]
[337258603,1725553683676,-500.0,0.00014992,2]
[337258604,1725553683699,-191.11032327,0.00014992,2]
[337258605,1725553683721,-605.01,0.00014992,2]
[337258606,1725553683744,-605.01,0.00014992,2]
[337258607,1725553683768,-542.71,0.00014992,2]
[337258608,1725553683792,-542.71,0.00014992,2]
[337258609,1725553683816,-524.89,0.00014992,2]
[337258610,1725553683838,-524.89,0.00014992,2]
[337258611,1725553683869,-500.0,0.00014992,2]
[337258612,1725553683891,-500.0,0.00014992,2]
[337258613,1725553683913,-500.0,0.00014992,2]
[337258614,1725553683935,-500.0,0.00014992,2]
[337258615,1725553683957,-522.82,0.00014992,2]
[337258616,1725553683980,-522.82,0.00014992,2]
[337258617,1725553684003,-500.0,0.00014992,2]
[337258618,1725553684024,-501.81827102,0.00014992,2]
[337258619,1725553684047,-500.0,0.00014992,2]
[337258620,1725553684069,-511.80312057,0.00014992,2]
[337258621,1725553684092,-1176.7078,0.00014992,2]
[337258622,1725553684126,-1491.48,0.00014992,2]
[337258623,1725553684152,-909.88,0.00014992,2]
[337258624,1725553684175,-811.19,0.00014992,2]
[337258625,1725553684203,-970.97,0.00014992,2]
[337258626,1725553684226,-500.0,0.00014992,2]
[337258627,1725553684253,-500.0,0.00014992,2]
[337258628,1725553684278,-500.0,0.00014992,2]
[337258629,1725553684301,-500.0,0.00014992,2]
[337258630,1725553684328,-3304.34,0.00014992,2]
[337258631,1725553684354,-1322.81,0.00014992,2]
[337258632,1725553684377,-606.33,0.00014992,2]
[337258633,1725553684400,-3499.63,0.00014992,2]
[337258634,1725553684423,-500.0,0.00014992,2]
[337258635,1725553684448,-1487.4,0.00014992,2]
[337258636,1725553684472,-531.16,0.00014992,2]
[337258637,1725553684497,-12758.91,0.00014992,2]
[337258638,1725553684520,-721.49,0.00014992,2]
[337258639,1725553684543,-500.0,0.00014992,2]
[337258640,1725553684566,-3383.94,0.00014992,2]
[337258641,1725553684589,-516.01,0.00014992,2]
[337258642,1725553684618,-14738.66,0.00014992,2]
[337258643,1725553684642,-6022.62,0.00014992,2]
[337258644,1725553684667,-2989.74,0.00014992,2]
[337258645,1725553684690,-500.0,0.00014992,2]
[337258646,1725553684715,-1823.63,0.00014992,2]
[337258647,1725553684739,-500.0,0.00014992,2]
[337258648,1725553684762,-716.41,0.00014992,2]
[337258649,1725553684785,-278.35532353,0.00014992,2]
[337258650,1725553684810,-1222.83,0.00014992,2]
[337258651,1725553684833,-500.0,0.00014992,2]
[337258652,1725553684856,-753.56,0.00014992,2]
[337258653,1725553684879,-503.54805172,0.00014993,2]
[337258654,1725553684901,-500.0,0.00014993,2]
[337258655,1725553684925,-500.0,0.00014993,2]
[337258656,1725553684948,-500.0,0.00014993,2]
[337258657,1725553684971,-630.05368277,0.00014993,2]
[337258658,1725553684993,-501.88104069,0.00014993,2]
[337258659,1725553685015,-501.99831345,0.00014993,2]
[337258660,1725553685037,-502.12240411,0.00014993,2]
[337258661,1725553685059,-502.1599765,0.00014993,2]
[337258662,1725553685085,-504.67559044,0.00014993,2]
[337258663,1725553685116,-498.07235426,0.00014993,2]
[337258664,1725553685139,-500.0,0.00014993,2]
[337258665,1725553685163,-500.0,0.00014993,2]
[337258666,1725553685186,-500.0,0.00014993,2]
[337258667,1725553685210,-500.0,0.00014993,2]
[337258668,1725553685232,-565.39,0.00014993,2]
[337258669,1725553685254,-619.04272652,0.00014993,2]
[337258670,1725553685276,-2481.14,0.00014993,2]
[337258671,1725553685299,-500.0,0.00014993,2]
[337258672,1725553685321,-500.0,0.00014993,2]
[337258673,1725553685342,-2083.49,0.00014993,2]
[337258674,1725553685367,-1582.58,0.00014993,2]
[337258675,1725553685390,-500.0,0.00014993,2]
[337258676,1725553685412,-500.0,0.00014993,2]
[337258677,1725553685434,-500.0,0.00014993,2]
[337258678,1725553685455,-500.0,0.00014993,2]
[337258679,1725553685477,-500.0,0.00014993,2]
[337258680,1725553685500,-1739.6,0.00014993,2]
[337258681,1725553685522,-1742.98,0.00014993,2]
[337258682,1725553685544,-500.0,0.00014993,2]
[337258683,1725553685567,-566.01,0.00014993,2]
[337258684,1725553685590,-300.72773885,0.00014993,2]
[337258685,1725553685615,-2325.28,0.00014993,2]
[337258686,1725553685636,-1090.74,0.00014993,2]
[337258687,1725553685664,-500.0,0.00014993,2]
[337258688,1725553685687,-500.0,0.00014993,2]
[337258689,1725553685709,-1806.2,0.00014993,2]
[337258690,1725553685731,-500.0,0.00014993,2]
[337258691,1725553685753,-155.37350363,0.00014993,2]
[337258692,1725553685776,-500.0,0.00014993,2]
[337258693,1725553685797,-500.0,0.00014993,2]
[337258694,1725553685819,-500.0,0.00014993,2]
[337258695,1725553685841,-500.0,0.00014993,2]
[337258696,1725553685865,-500.0,0.00014993,2]
[337258697,1725553685887,-500.0,0.00014993,2]
[337258698,1725553685909,-500.0,0.00014993,2]
[337258699,1725553685930,-500.0,0.00014993,2]
[337258700,1725553685951,-500.0,0.00014993,2]
[337258701,1725553685973,-500.0,0.00014993,2]
[337258702,1725553685995,-500.0,0.00014993,2]
[337258703,1725553686017,-814.38,0.00014993,2]
[337258704,1725553686039,-500.0,0.00014993,2]
[337258705,1725553686324,-500.0,0.00014993,2]
[337258706,1725553686347,-500.0,0.00014993,2]
[337258707,1725553686371,-500.0,0.00014993,2]
[337258708,1725553686566,-500.0,0.00014993,2]
[337258709,1725553686591,-500.0,0.00014993,2]
[337258710,1725553686620,-500.0,0.00014993,2]
[337258711,1725553686644,-500.0,0.00014993,2]
[337258712,1725553686667,-500.0,0.00014993,2]
[337258713,1725553686691,-500.0,0.00014993,2]
[337258714,1725553686713,-510.37111207,0.00014993,2]
[337258715,1725553686734,-575.63790297,0.00014993,2]
[337258716,1725553686756,-500.4,0.00014993,2]
[337258717,1725553686778,-505.59000856,0.00014993,2]
[337258718,1725553686800,-500.0,0.00014993,2]
[337258719,1725553686823,-500.0,0.00014993,2]
[337258720,1725553686846,-500.0,0.00014993,2]
[337258721,1725553686870,-500.0,0.00014993,2]
[337258722,1725553686892,-500.0,0.00014993,2]
[337258723,1725553686914,-520.76815083,0.00014993,2]
[337258724,1725553686940,-620.81865074,0.00014993,2]
[337258725,1725553686962,-500.0,0.00014993,2]
[337258726,1725553686984,-500.0,0.00014993,2]
[337258727,1725553687007,-500.0,0.00014993,2]
[337258728,1725553687029,-278.07305669,0.00014993,2]
[337258729,1725553687052,-500.0,0.00014993,2]
[337258730,1725553687074,-500.0,0.00014993,2]
[337258731,1725553687097,-500.0,0.00014993,2]
[337258732,1725553687123,-500.0,0.00014993,2]
[337258733,1725553687148,-500.0,0.00014993,2]
[337258734,1725553687170,-500.0,0.00014993,2]
[337258735,1725553687193,-500.0,0.00014993,2]
[337258736,1725553687215,-500.0,0.00014993,2]
[337258737,1725553687236,-500.0,0.00014993,2]
[337258738,1725553687259,-500.0,0.00014993,2]
[337258739,1725553687281,-500.0,0.00014993,2]
[337258740,1725553687304,-598.86,0.00014993,2]
[337258741,1725553687326,-500.0,0.00014993,2]
[337258742,1725553687353,-500.0,0.00014993,2]
[337258743,1725553687381,-500.0,0.00014993,2]
[337258744,1725553687404,-500.0,0.00014993,2]
[337258745,1725553687426,-500.0,0.00014993,2]
[337258746,1725553687448,-500.0,0.00014993,2]
[337258747,1725553687469,-502.58766596,0.00014993,2]
[337258748,1725553687491,-500.0,0.00014993,2]
[337258749,1725553687514,-500.0,0.00014993,2]
[337258750,1725553687536,-500.0,0.00014993,2]
[337258751,1725553687559,-500.0,0.00014993,2]
[337258752,1725553687582,-559.97612165,0.00014993,2]
[337258753,1725553687605,-500.0,0.00014993,2]
[337258754,1725553687627,-518.46,0.00014993,2]
[337258755,1725553687649,-500.0,0.00014993,2]
[337258756,1725553687671,-500.0,0.00014993,2]
[337258757,1725553687694,-184.99046424,0.00014993,2]
[337258758,1725553687717,-500.0,0.00014993,2]
[337258759,1725553687739,-500.0,0.00014993,2]
[337258760,1725553687762,-500.0,0.00014993,2]
[337258761,1725553687785,-545.44316796,0.00014993,2]
[337258762,1725553687807,-500.0,0.00014993,2]
[337258763,1725553687830,-532.02,0.00014993,2]
[337258764,1725553687856,-500.0,0.00014993,2]
[337258765,1725553687879,-500.0,0.00014993,2]
[337258766,1725553687902,-510.80384083,0.00014993,2]
[337258767,1725553687926,-176.19008571,0.00014993,2]
[337258768,1725553687950,-500.0,0.00014993,2]
[337258769,1725553687972,-500.0,0.00014993,2]
[337258770,1725553687995,-1039.46,0.00014993,2]
[337258771,1725553688018,-500.0,0.00014993,2]
[337258772,1725553688040,-500.0,0.00014993,2]
[337258773,1725553688063,-500.0,0.00014993,2]
[337258774,1725553688086,-1056.77,0.00014993,2]
[337258775,1725553688113,-500.0,0.00014993,2]
[337258776,1725553688135,-500.0,0.00014993,2]
[337258777,1725553688159,-500.0,0.00014993,2]
[337258778,1725553688183,-500.0,0.00014993,2]
[337258779,1725553688206,-500.0,0.00014993,2]
[337258780,1725553688229,-595.35,0.00014993,2]
[337258781,1725553688253,-500.0,0.00014993,2]
[337258782,1725553688276,-513.71234291,0.00014993,2]
[337258783,1725553688301,-500.0,0.00014993,2]
[337258784,1725553688325,-505.41134129,0.00014993,2]
[337258785,1725553688354,-513.62368363,0.00014993,2]
[337258786,1725553688378,-500.0,0.00014993,2]
[337258787,1725553688407,-532.75642241,0.00014993,2]
[337258788,1725553688451,-500.0,0.00014993,2]
[337258789,1725553688476,-745.56,0.00014993,2]
[337258790,1725553688501,-503.67522138,0.00014993,2]
[337258791,1725553688524,-500.0,0.00014993,2]
[337258792,1725553688546,-606.49065591,0.00014993,2]
[337258793,1725553688569,-500.0,0.00014993,2]
[337258794,1725553688591,-500.0,0.00014993,2]
[337258795,1725553688615,-500.0,0.00014993,2]
[337258796,1725553688638,-500.0,0.00014993,2]
[337258797,1725553688660,-502.88248179,0.00014993,2]
[337258798,1725553688683,-507.75488055,0.00014993,2]
[337258799,1725553688706,-504.09845787,0.00014993,2]
[337258800,1725553688728,-500.0,0.00014993,2]
[337258801,1725553688752,-500.0,0.00014993,2]
[337258802,1725553688775,-2774.88,0.00014993,2]
[337258803,1725553688798,-549.9130671,0.00014993,2]
[337258804,1725553688820,-500.0,0.00014993,2]
[337258805,1725553688843,-500.0,0.00014993,2]
[337258806,1725553688867,-721.08,0.00014993,2]
[337258807,1725553688889,-500.0,0.00014993,2]
[337258808,1725553688913,-500.0,0.00014993,2]
[337258809,1725553688934,-500.0,0.00014993,2]
[337258810,1725553688958,-500.0,0.00014993,2]
[337258811,1725553688980,-506.56347396,0.00014993,2]
[337258812,1725553689003,-1058.08,0.00014993,2]
[337258813,1725553689026,-287.56345739,0.00014993,2]
[337258814,1725553689048,-500.0,0.00014993,2]
[337258815,1725553689070,-500.0,0.00014993,2]
[337258816,1725553689094,-2433.41,0.00014993,2]
[337258817,1725553689120,-509.79249981,0.00014993,2]
[337258818,1725553689143,-625.31,0.00014993,2]
[337258819,1725553689167,-500.0,0.00014993,2]
[337258820,1725553689190,-616.8972974,0.00014993,2]
[337258821,1725553689214,-500.0,0.00014993,2]
[337258822,1725553689237,-503.89228672,0.00014993,2]
[337258823,1725553689260,-568.6,0.00014993,2]
[337258824,1725553689283,-500.0,0.00014993,2]
[337258825,1725553689305,-500.0,0.00014993,2]
[337258826,1725553689326,-556.11994377,0.00014993,2]
[337258827,1725553689349,-579.17,0.00014993,2]
[337258828,1725553689379,-503.30692672,0.00014993,2]
[337258829,1725553689402,-598.85164,0.00014993,2]
[337258830,1725553689425,-500.0,0.00014993,2]
[337258831,1725553689449,-586.29859515,0.00014993,2]
[337258832,1725553689472,-500.0,0.00014993,2]
[337258833,1725553689495,-500.0,0.00014993,2]
[337258834,1725553689518,-504.55472798,0.00014993,2]
[337258835,1725553689542,-200.73,0.00014994,2]
[337258836,1725553689566,-587.68,0.00014994,2]
[337258837,1725553689595,-1314.03,0.00014994,2]
[337258838,1725553689621,-500.0,0.00014994,2]
[337258839,1725553689650,-500.0,0.00014994,2]
[337258840,1725553689684,-180.69050611,0.00014994,2]
[337258841,1725553689714,-651.92,0.00014994,2]
[337258842,1725553689738,-500.0,0.00014994,2]
[337258843,1725553689762,-3826.98,0.00014994,2]
[337258844,1725553689785,-500.0,0.00014994,2]
[337258845,1725553689808,-500.0,0.00014994,2]
[337258846,1725553689831,-727.97,0.00014994,2]
[337258847,1725553689853,-500.0,0.00014994,2]
[337258848,1725553689878,-500.0,0.00014994,2]
[337258849,1725553689903,-500.0,0.00014994,2]
[337258850,1725553689926,-2127.22,0.00014994,2]
[337258851,1725553689949,-2970.51,0.00014994,2]
[337258852,1725553689971,-605.01,0.00014994,2]
[337258853,1725553689994,-672.18,0.00014994,2]
[337258854,1725553690017,-542.71,0.00014994,2]
[337258855,1725553690040,-514.26,0.00014994,2]
[337258856,1725553690062,-963.14,0.00014994,2]
[337258857,1725553690088,-524.89,0.00014994,2]
[337258858,1725553690120,-500.0,0.00014994,2]
[337258859,1725553690144,-500.0,0.00014994,2]
[337258860,1725553690168,-2841.65,0.00014994,2]
[337258861,1725553690193,-500.0,0.00014994,2]